bitfinex/quotes_SOLUSD_20241111
["timestamp","ask_amount","ask_price","bid_price","bid_amount"]
[1731301518764,18.72220545,207.92,207.85,13.91260545]
[1731301519138,13.91260545,207.91,207.84,13.91260545]
[1731301519359,13.91260545,207.91,207.84,13.41260545]
[1731301519558,13.91260545,207.9,207.83,13.91260545]
[1731301519856,13.91260545,207.89,207.82,13.91260545]
[1731301520455,13.91260545,207.9,207.83,13.91260545]
[1731301521537,4.8086,207.96,207.85,13.91260545]
[1731301521857,13.91260545,207.91,207.84,13.91260545]
[1731301522241,13.91260545,207.91,207.85,0.41708251]
[1731301522856,15.0023,207.9,207.85,0.41708251]
[1731301523651,15.0023,207.9,207.86,0.02508739]
[1731301523843,15.0023,207.9,207.83,13.91260545]
[1731301524639,28.91490545,207.9,207.82,13.91260545]
[1731301524840,13.91260545,207.89,207.82,13.91260545]
[1731301525053,13.91260545,207.89,207.77,20.0]
[1731301525354,13.91260545,207.89,207.82,13.91260545]
[1731301525737,13.91260545,207.89,207.77,20.0]
[1731301525952,13.91260545,207.89,207.82,13.91260545]
[1731301526140,13.91260545,207.88,207.81,13.91260545]
[1731301526355,13.91260545,207.84,207.73,1.77327547]
[1731301526567,24.8102,207.89,207.71,15.8116]
[1731301526568,13.91260545,207.81,207.71,15.8116]
[1731301526751,13.91260545,207.79,207.68,1.74151998]
[1731301527064,13.91260545,207.79,207.65,15.9116]
[1731301527065,13.91260545,207.79,207.72,13.91260545]
[1731301527561,13.91260545,207.8,207.73,13.91260545]
[1731301527948,13.91260545,207.79,207.72,13.91260545]
[1731301528964,20.361,207.82,207.72,13.91260545]
[1731301529463,13.91260545,207.8,207.73,13.95541839]
[1731301529771,13.91260545,207.8,207.73,13.91260545]
[1731301530068,20.361,207.82,207.74,0.04281088]
[1731301530245,13.91260545,207.81,207.74,13.95541633]
[1731301530443,13.91260545,207.81,207.75,0.04280882]
[1731301530855,20.361,207.82,207.75,0.04280882]
[1731301531062,29.46160545,207.82,207.75,13.95541427]
[1731301531257,15.549,207.82,207.76,13.95541221]
[1731301531563,15.549,207.82,207.77,13.95541015]
[1731301531763,15.549,207.82,207.7,13.91260545]
[1731301531764,13.91260545,207.86,207.79,13.91260545]
[1731301531946,13.91260545,207.86,207.8,0.04279852]
[1731301532146,13.91260545,207.86,207.79,13.91260545]
[1731301532147,20.0,207.86,207.79,13.91260545]
[1731301532458,13.91260545,207.86,207.79,13.91260545]
[1731301533045,13.91260545,207.85,207.78,13.91260545]
[1731301534262,13.91260545,207.84,207.77,13.91260545]
[1731301534471,13.91260545,207.83,207.76,13.91260545]
[1731301534768,13.91260545,207.83,207.65,17.61803009]
[1731301534769,13.91260545,207.82,207.74,13.91260545]
[1731301535540,13.91260545,207.82,207.75,13.91260545]
[1731301535859,4.99595246,207.9,207.81,13.91260545]
[1731301536042,13.91260545,207.9,207.83,13.91260545]
[1731301536367,15.7427,207.92,207.84,0.04279028]
[1731301536566,13.91260545,207.9,207.84,0.04279028]
[1731301536870,15.7427,207.92,207.84,0.04279028]
[1731301537046,15.7427,207.92,207.88,13.91260545]
[1731301537465,15.7427,207.92,207.87,13.91260545]
[1731301538250,15.7427,207.92,207.86,13.91260545]
[1731301538759,20.5523,207.92,207.85,13.91260545]
[1731301539661,20.5523,207.92,207.86,13.91260545]
[1731301542964,15.7427,207.92,207.86,13.91260545]
[1731301543348,34.17360545,207.97,207.9,13.91260545]
[1731301543565,13.91260545,207.93,207.91,0.04277587]
[1731301543869,13.91260545,207.92,207.84,13.91260545]
[1731301544063,13.91260545,207.92,207.8,20.0]
[1731301544248,13.91260545,207.92,207.84,13.91260545]
[1731301544444,13.91260545,207.91,207.8,20.0]
[1731301544669,13.91260545,207.9,207.82,13.91260545]
[1731301544863,13.91260545,207.89,207.83,0.04279234]
[1731301545366,13.91260545,207.91,207.83,13.91260545]
[1731301546597,13.91260545,207.91,207.84,13.95539573]
[1731301546877,18.72220545,207.92,207.85,13.95539367]
[1731301547045,13.91260545,207.91,207.85,0.04278822]
[1731301547251,13.91260545,207.91,207.84,13.91260545]
[1731301547473,13.91260545,207.9,207.83,13.91260545]
[1731301547670,13.91260545,207.89,207.82,13.91260545]
[1731301548172,13.91260545,207.88,207.81,13.91260545]
[1731301548356,13.91260545,207.86,207.79,13.91260545]
[1731301548557,13.91260545,207.83,207.69,101.5856]
[1731301548906,13.91260545,207.83,207.76,13.91260545]
[1731301550168,13.91260545,207.84,207.76,13.91260545]
[1731301550370,13.91260545,207.84,207.7,13.91260545]
[1731301550371,13.91260545,207.82,207.75,13.91260545]
[1731301550674,13.91260545,207.81,207.74,13.91260545]
[1731301550968,13.91260545,207.8,207.72,13.91260545]
[1731301551208,13.91260545,207.8,207.73,13.91260545]
[1731301551476,6.1168,207.83,207.75,13.91260545]
[1731301551772,13.91260545,207.82,207.75,13.91260545]
[1731301552446,13.91260545,207.81,207.74,13.91260545]
[1731301553355,13.91260545,207.81,207.73,13.91260545]
[1731301553766,13.91260545,207.8,207.73,13.91260545]
[1731301553977,13.91260545,207.8,207.65,0.93242783]
[1731301553978,13.91260545,207.78,207.71,13.91260545]
[1731301554275,13.91260545,207.78,207.64,21.2248]
[1731301554276,13.91260545,207.77,207.69,13.91260545]
[1731301554454,13.91260545,207.77,207.7,13.91260545]
[1731301555274,18.72530545,207.79,207.72,13.91260545]
[1731301556255,34.58160545,207.81,207.73,13.91260545]
[1731301556570,15.8568,207.81,207.75,13.91260545]
[1731301556972,29.76940545,207.81,207.74,13.91260545]
[1731301557453,15.8568,207.81,207.75,13.91260545]
[1731301557658,29.76940545,207.81,207.74,13.91260545]
[1731301557854,34.58150545,207.81,207.73,13.91260545]
[1731301558054,29.76940545,207.81,207.73,13.91260545]
[1731301558472,13.91260545,207.79,207.72,13.91260545]
[1731301559610,13.91260545,207.77,207.7,13.91260545]
[1731301559871,18.90774328,207.78,207.7,13.91260545]
[1731301560059,25.6642572,207.81,207.65,20.0]
[1731301560060,13.91260545,207.79,207.65,20.0]
[1731301560255,13.91260545,207.79,207.71,13.91260545]
[1731301560666,30.34700545,207.72,207.63,4.99371221]
[1731301560866,13.91260545,207.68,207.6,13.91260545]
[1731301561172,13.91260545,207.67,207.59,13.91260545]
[1731301561474,13.91260545,207.68,207.61,13.91260545]
[1731301561662,13.91260545,207.67,207.6,13.91260545]
[1731301561861,13.91260545,207.7,207.63,13.91260545]
[1731301562063,13.91260545,207.68,207.61,13.91260545]
[1731301562299,4.8153,207.67,207.54,15.3674]
[1731301562643,13.91260545,207.65,207.58,13.91260545]
[1731301562764,13.91260545,207.66,207.59,13.91260545]
[1731301563176,13.91260545,207.65,207.58,13.91260545]
[1731301563359,13.91260545,207.64,207.57,13.91260545]
[1731301563758,13.91260545,207.65,207.58,13.91260545]
[1731301564957,13.91260545,207.66,207.59,13.91260545]
[1731301565160,4.8153,207.67,207.58,13.91260545]
[1731301565161,13.91260545,207.65,207.58,13.91260545]
[1731301565562,13.91260545,207.66,207.58,13.91260545]
[1731301565976,13.91260545,207.67,207.6,13.91260545]
[1731301567181,6.4961,207.68,207.54,15.3674]
[1731301567182,20.0,207.71,207.63,13.91260545]
[1731301567369,13.91260545,207.7,207.62,13.91260545]
[1731301567681,21.2486,207.72,207.62,13.91260545]
[1731301567876,13.91260545,207.68,207.61,13.91260545]
[1731301569085,13.91260545,207.69,207.62,13.91260545]
[1731301569788,13.91260545,207.68,207.6,13.91260545]
[1731301571282,13.91260545,207.68,207.61,13.91260545]
[1731301571580,13.91260545,207.67,207.59,13.91260545]
[1731301572280,13.91260545,207.66,207.59,13.91260545]
[1731301572466,13.91260545,207.65,207.58,13.91260545]
[1731301572671,13.91260545,207.67,207.59,13.91260545]
[1731301573051,13.91260545,207.66,207.59,13.91260545]
[1731301573784,13.91260545,207.67,207.59,13.91260545]
[1731301574787,13.91260545,207.67,207.6,13.91260545]
[1731301575986,4.8148,207.69,207.6,13.91260545]
[1731301576288,13.91260545,207.67,207.6,13.91260545]
[1731301576670,13.91260545,207.67,207.54,15.3674]
[1731301576671,13.91260545,207.66,207.59,13.91260545]
[1731301576867,13.91260545,207.66,207.54,15.3674]
[1731301576868,13.91260545,207.65,207.58,13.91260545]
[1731301577069,4.8148,207.69,207.57,13.91260545]
[1731301577070,13.91260545,207.64,207.57,13.91260545]
[1731301577992,13.91260545,207.63,207.56,13.91260545]
[1731301578171,13.91260545,207.61,207.54,18.3078081]
[1731301578373,13.91260545,207.61,207.54,13.91260545]
[1731301578772,13.91260545,207.58,207.51,18.3078081]
[1731301578991,13.91260545,207.52,207.5,4.39520265]
[1731301579167,13.91260545,207.51,207.45,4.39520265]
[1731301579369,13.91260545,207.53,207.46,13.91260545]
[1731301579677,16.3745,207.55,207.46,13.91260545]
[1731301579880,13.91260545,207.54,207.47,13.91260545]
[1731301580276,16.3745,207.55,207.44,4.39520265]
[1731301580277,13.91260545,207.53,207.46,13.91260545]
[1731301580487,16.3745,207.55,207.49,13.91260545]
[1731301580785,29.05290545,207.63,207.54,13.91260545]
[1731301581083,13.91260545,207.62,207.55,13.91260545]
[1731301581465,15.1403,207.63,207.57,13.91260545]
[1731301581667,20.26590545,207.65,207.58,13.91260545]
[1731301582266,13.91260545,207.62,207.55,18.3078081]
[1731301582463,13.91260545,207.63,207.56,4.39520265]
[1731301582675,13.91260545,207.64,207.57,18.3078081]
[1731301582883,13.91260545,207.65,207.58,13.91260545]
[1731301583692,29.05290545,207.68,207.61,13.91260545]
[1731301583889,20.0,207.67,207.61,13.91260545]
[1731301584186,15.1403,207.68,207.63,13.91260545]
[1731301584484,15.1403,207.68,207.62,13.91260545]
[1731301586269,6.0064,207.7,207.56,4.38545556]
[1731301586270,6.0064,207.7,207.65,13.91260545]
[1731301586470,15.1403,207.72,207.68,13.91260545]
[1731301586691,24.73250545,207.75,207.7,13.91260545]
[1731301586692,10.8199,207.75,207.7,13.91260545]
[1731301587191,10.8199,207.75,207.6,13.91260545]
[1731301587192,10.8199,207.75,207.69,13.91260545]
[1731301587788,24.73250545,207.75,207.68,13.91260545]
[1731301588093,10.8199,207.75,207.7,13.91260545]
[1731301588587,10.8199,207.75,207.69,13.91260545]
[1731301588892,24.73250545,207.75,207.68,13.91260545]
[1731301590292,10.8199,207.75,207.68,13.91260545]
[1731301594824,10.8199,207.75,207.69,13.91260545]
[1731301595478,15.1403,207.77,207.72,13.91260545]
[1731301596000,15.1403,207.77,207.74,13.91260545]
[1731301596176,15.1403,207.77,207.73,13.91260545]
[1731301597189,23.776884,207.76,207.73,13.91260545]
[1731301598594,23.776884,207.76,207.72,13.91260545]
[1731301598981,23.776884,207.74,207.63,20.0]
[1731301599196,23.776884,207.74,207.68,13.91260545]
[1731301600094,28.590584,207.74,207.67,13.91260545]
[1731301601597,28.590584,207.74,207.68,13.91260545]
[1731301601990,23.776884,207.75,207.69,13.91260545]
[1731301602603,15.1403,207.77,207.62,16.2088]
[1731301602781,15.1403,207.77,207.73,13.91260545]
[1731301603310,4.8126,207.79,207.73,13.91260545]
[1731301603596,15.8951,207.82,207.75,13.91260545]
[1731301603787,15.8951,207.82,207.65,6.5871]
[1731301603989,15.8951,207.82,207.77,13.91260545]
[1731301604513,20.707,207.82,207.77,13.91260545]
[1731301604710,20.707,207.82,207.75,13.91260545]
[1731301605011,23.776884,207.81,207.75,13.91260545]
[1731301605207,23.776884,207.79,207.73,13.91260545]
[1731301606644,23.776884,207.77,207.7,13.91260545]
[1731301607482,28.589884,207.77,207.7,13.91260545]
[1731301607796,23.776884,207.77,207.71,13.91260545]
[1731301608000,23.776884,207.8,207.74,13.91260545]
[1731301608304,23.776884,207.8,207.75,13.91260545]
[1731301608699,15.8951,207.82,207.76,13.91260545]
[1731301609008,20.707,207.82,207.76,13.91260545]
[1731301609404,34.61960545,207.82,207.75,13.91260545]
[1731301609696,13.91260545,207.81,207.73,13.91260545]
[1731301610082,23.776884,207.8,207.73,13.91260545]
[1731301610286,23.776884,207.8,207.74,13.91260545]
[1731301611197,15.8951,207.82,207.78,13.91260545]
[1731301611512,15.8951,207.82,207.76,13.91260545]
[1731301611686,34.61950545,207.82,207.75,13.91260545]
[1731301611889,34.61950545,207.82,207.71,36.5592]
[1731301611890,13.91260545,207.81,207.73,13.91260545]
[1731301612312,13.91260545,207.8,207.73,13.91260545]
[1731301612484,23.776884,207.79,207.73,13.91260545]
[1731301612686,23.776884,207.79,207.66,15.0135]
[1731301612687,42.50198945,207.79,207.72,13.91260545]
[1731301614003,28.589384,207.79,207.73,13.91260545]
[1731301616510,42.50198945,207.79,207.72,13.91260545]
[1731301616893,37.68948945,207.79,207.73,13.91260545]
[1731301617105,23.776884,207.79,207.73,13.91260545]
[1731301619798,37.68948945,207.79,207.67,20.0]
[1731301620111,37.68948945,207.79,207.73,13.91260545]
[1731301620925,23.776884,207.79,207.73,13.91260545]
[1731301621912,23.776884,207.79,207.74,13.91260545]
[1731301622094,15.8951,207.82,207.78,13.91260545]
[1731301622290,15.8951,207.82,207.79,13.91260545]
[1731301622516,6.2875,207.85,207.79,13.91260545]
[1731301622697,13.91260545,207.84,207.77,13.91260545]
[1731301623697,23.776884,207.83,207.77,13.91260545]
[1731301624103,37.68948945,207.81,207.74,13.91260545]
[1731301624299,13.91260545,207.8,207.73,13.91260545]
[1731301624814,23.776884,207.79,207.74,13.91260545]
[1731301625197,23.776884,207.8,207.74,13.91260545]
[1731301625593,37.68948945,207.8,207.73,13.91260545]
[1731301625901,37.68948945,207.8,207.67,20.0]
[1731301625902,23.776884,207.78,207.72,13.91260545]
[1731301626093,23.776884,207.78,207.73,13.91260545]
[1731301626297,23.776884,207.76,207.66,15.0135]
[1731301626506,23.776884,207.74,207.62,5.08402443]
[1731301626720,23.776884,207.74,207.7,13.91260545]
[1731301627322,13.91260545,207.76,207.7,13.91260545]
[1731301627323,23.776884,207.75,207.7,13.91260545]
[1731301627512,23.776884,207.75,207.69,13.91260545]
[1731301627892,37.68948945,207.76,207.7,13.91260545]
[1731301628320,37.68948945,207.76,207.69,13.91260545]
[1731301629802,23.776884,207.76,207.7,13.91260545]
[1731301630025,37.68948945,207.76,207.69,13.91260545]
[1731301630617,37.68948945,207.76,207.62,7.09307795]
[1731301630618,23.776884,207.74,207.68,13.91260545]
[1731301630798,23.776884,207.74,207.69,13.91260545]
[1731301631221,23.776884,207.75,207.69,13.91260545]
[1731301631411,37.68948945,207.75,207.68,13.91260545]
[1731301631802,23.776884,207.75,207.69,13.91260545]
[1731301632909,23.776884,207.75,207.7,13.91260545]
[1731301633107,23.776884,207.77,207.7,13.91260545]
[1731301633298,13.91260545,207.76,207.69,13.91260545]
[1731301633699,23.776884,207.75,207.69,13.91260545]
[1731301634321,23.776884,207.75,207.7,13.91260545]
[1731301634708,13.91260545,207.74,207.63,20.0]
[1731301634932,23.776884,207.73,207.67,13.91260545]
[1731301635108,23.776884,207.73,207.68,13.91260545]
[1731301635305,23.776884,207.74,207.68,13.91260545]
[1731301635921,23.776884,207.74,207.69,13.91260545]
[1731301636404,23.776884,207.74,207.63,20.0]
[1731301636405,37.68948945,207.74,207.67,13.91260545]
[1731301638031,23.776884,207.7,207.62,4.98402443]
[1731301638206,23.776884,207.7,207.65,13.91260545]
[1731301638718,13.91260545,207.69,207.63,13.91260545]
[1731301638924,23.776884,207.68,207.63,13.91260545]
[1731301639422,23.776884,207.66,207.61,13.91260545]
[1731301639930,23.776884,207.67,207.61,13.91260545]
[1731301640720,23.776884,207.69,207.57,7.09998061]
[1731301640927,23.776884,207.7,207.66,13.91260545]
[1731301641925,16.1003,207.71,207.68,13.91260545]
[1731301643326,23.776884,207.7,207.68,13.91260545]
[1731301644418,23.776884,207.7,207.69,13.91260545]
[1731301645028,23.776884,207.7,207.68,13.91260545]
[1731301645414,23.776884,207.7,207.6,13.91260545]
[1731301645415,23.776884,207.7,207.67,13.91260545]
[1731301645613,23.776884,207.7,207.64,13.91260545]
[1731301645911,37.68948945,207.7,207.63,13.91260545]
[1731301646237,23.776884,207.68,207.63,13.91260545]
[1731301646429,37.68948945,207.7,207.63,13.91260545]
[1731301646640,42.50418945,207.7,207.63,13.91260545]
[1731301647414,23.776884,207.68,207.61,13.91260545]
[1731301649216,13.91260545,207.66,207.6,4.42274137]
[1731301649417,23.776884,207.65,207.6,13.91260545]
[1731301649613,37.68948945,207.66,207.59,18.33412648]
[1731301649850,23.776884,207.64,207.6,13.91260545]
[1731301650028,23.776884,207.66,207.6,13.91260545]
[1731301651340,42.50508945,207.66,207.59,13.91260545]
[1731301651942,42.50508945,207.66,207.58,4.42152103]
[1731301652142,42.50508945,207.66,207.59,13.91260545]
[1731301652321,42.50508945,207.66,207.57,4.9856408]
[1731301652815,42.50508945,207.66,207.59,13.91260545]
[1731301653018,42.50508945,207.66,207.57,4.9856408]
[1731301653339,28.592484,207.66,207.59,13.91260545]
[1731301653546,28.592484,207.66,207.57,4.9856408]
[1731301653739,28.592484,207.66,207.59,13.91260545]
[1731301654040,28.592484,207.66,207.6,13.91260545]
[1731301654615,28.592484,207.66,207.57,4.9856408]
[1731301654835,28.592484,207.66,207.6,13.91260545]
[1731301656275,6.0052,207.67,207.64,13.91260545]
[1731301657438,23.776884,207.66,207.64,13.91260545]
[1731301657644,23.776884,207.66,207.63,13.91260545]
[1731301658533,23.776884,207.66,207.64,13.91260545]
[1731301659123,23.776884,207.66,207.63,13.91260545]
[1731301659330,23.776884,207.66,207.64,13.91260545]
[1731301659738,23.776884,207.66,207.63,13.91260545]
[1731301660040,23.776884,207.66,207.55,24.98199668]
[1731301660041,23.776884,207.66,207.64,13.91260545]
[1731301660249,30.01290545,207.71,207.56,4.4173836]
[1731301660250,16.1003,207.71,207.58,20.0]
[1731301660543,16.1003,207.71,207.68,13.91260545]
[1731301661730,23.776884,207.7,207.68,13.91260545]
[1731301661926,23.776884,207.7,207.6,13.91260545]
[1731301661927,23.776884,207.7,207.67,13.91260545]
[1731301662435,23.776884,207.74,207.58,20.2]
[1731301662739,23.776884,207.73,207.69,13.91260545]
[1731301662940,23.776884,207.73,207.67,13.91260545]
[1731301663139,23.776884,207.73,207.68,13.91260545]
[1731301663825,4.8139,207.73,207.68,13.91260545]
[1731301664035,23.776884,207.72,207.68,13.91260545]
[1731301666143,28.590484,207.75,207.68,13.91260545]
[1731301666649,42.50308945,207.75,207.68,13.91260545]
[1731301670354,28.590484,207.75,207.69,13.91260545]
[1731301671155,42.50308945,207.75,207.68,13.91260545]
[1731301671750,23.776884,207.75,207.69,13.91260545]
[1731301671929,23.776884,207.75,207.7,13.91260545]
[1731301672849,23.776884,207.75,207.69,13.91260545]
[1731301673152,23.776884,207.75,207.7,13.91260545]
[1731301673946,23.776884,207.75,207.69,13.91260545]
[1731301674830,23.776884,207.75,207.68,13.91260545]
[1731301675051,23.776884,207.75,207.69,13.91260545]
[1731301675657,28.590484,207.75,207.68,13.91260545]
[1731301676837,42.50308945,207.75,207.67,13.91260545]
[1731301680362,42.50308945,207.75,207.68,13.91260545]
[1731301680738,23.776884,207.75,207.7,13.91260545]
[1731301681057,176.31260545,207.9,207.61,20.1]
[1731301681058,4.8127,207.79,207.74,13.91260545]
[1731301681651,4.8127,207.79,207.73,13.91260545]
[1731301681896,18.72530545,207.79,207.72,13.91260545]
[1731301682036,23.776884,207.78,207.71,13.91260545]
[1731301682555,13.91260545,207.77,207.69,13.91260545]
[1731301682860,4.8127,207.79,207.68,13.91260545]
[1731301682861,23.776884,207.75,207.68,13.91260545]
[1731301683455,23.776884,207.73,207.67,13.91260545]
[1731301683647,23.776884,207.73,207.66,13.91260545]
[1731301683843,28.590784,207.73,207.66,13.91260545]
[1731301685357,42.50338945,207.73,207.66,13.91260545]
[1731301685549,23.776884,207.71,207.65,13.91260545]
[1731301685739,13.91260545,207.69,207.62,13.91260545]
[1731301685941,23.776884,207.68,207.65,13.91260545]
[1731301686137,23.776884,207.68,207.67,13.91260545]
[1731301688252,23.776884,207.68,207.66,13.91260545]
[1731301689063,23.776884,207.68,207.65,13.91260545]
[1731301689249,23.776884,207.68,207.6,13.91260545]
[1731301689250,23.776884,207.7,207.64,13.91260545]
[1731301689441,21.3782,207.74,207.67,13.91260545]
[1731301689643,23.776884,207.73,207.67,13.91260545]
[1731301690048,23.776884,207.73,207.66,13.91260545]
[1731301690767,28.590884,207.73,207.66,13.91260545]
[1731301693068,13.91260545,207.72,207.64,13.91260545]
[1731301693251,13.91260545,207.7,207.62,13.91260545]
[1731301693571,4.814,207.73,207.59,22.4079]
[1731301693572,37.68948945,207.69,207.61,13.91260545]
[1731301693953,23.776884,207.66,207.61,13.91260545]
[1731301694276,23.776884,207.66,207.65,13.91260545]
[1731301701356,23.776884,207.66,207.64,13.91260545]
[1731301701667,23.776884,207.66,207.63,13.91260545]
[1731301702167,23.776884,207.66,207.64,13.91260545]
[1731301702852,23.776884,207.68,207.64,13.91260545]
[1731301703438,23.776884,207.68,207.63,13.91260545]
[1731301704481,23.776884,207.71,207.66,13.91260545]
[1731301704775,26.1921,207.74,207.68,13.91260545]
[1731301705078,40.10470545,207.74,207.67,13.91260545]
[1731301706068,23.776884,207.73,207.67,13.91260545]
[1731301707475,23.776884,207.71,207.66,13.91260545]
[1731301707773,23.776884,207.71,207.67,13.91260545]
[1731301709884,48.590784,207.73,207.67,13.91260545]
[1731301713583,48.590784,207.73,207.65,13.91260545]
[1731301713883,13.91260545,207.72,207.65,13.91260545]
[1731301714090,23.776884,207.71,207.63,13.91260545]
[1731301714776,13.91260545,207.69,207.61,13.91260545]
[1731301714970,23.776884,207.68,207.61,13.91260545]
[1731301715276,23.776884,207.68,207.62,13.91260545]
[1731301715489,28.591984,207.68,207.62,13.91260545]
[1731301715978,42.50458945,207.68,207.6,13.91260545]
[1731301716367,37.68948945,207.66,207.59,13.91260545]
[1731301716684,23.776884,207.63,207.57,13.91260545]
[1731301716982,23.776884,207.64,207.58,13.91260545]
[1731301717679,42.50548945,207.64,207.57,13.91260545]
[1731301718063,28.592884,207.64,207.58,13.91260545]
[1731301718461,28.592884,207.64,207.54,4.9837647]
[1731301718462,42.50548945,207.64,207.57,13.91260545]
[1731301719579,28.592884,207.64,207.58,13.91260545]
[1731301720966,28.592884,207.64,207.59,13.91260545]
[1731301721571,28.592884,207.64,207.54,4.9837647]
[1731301721572,23.776884,207.64,207.6,13.91260545]
[1731301722076,23.776884,207.64,207.59,13.91260545]
[1731301722581,23.776884,207.64,207.54,4.9837647]
[1731301722582,37.68948945,207.64,207.57,13.91260545]
[1731301722788,42.50558945,207.64,207.57,13.91260545]
[1731301723287,42.50558945,207.64,207.58,13.91260545]
[1731301723585,28.592984,207.64,207.58,13.91260545]
[1731301723973,28.592984,207.64,207.57,13.91260545]
[1731301723974,42.50558945,207.64,207.57,13.91260545]
[1731301724176,23.776884,207.61,207.54,4.9837647]
[1731301724371,23.776884,207.61,207.55,13.91260545]
[1731301724570,13.91260545,207.58,207.54,4.9837647]
[1731301724958,37.68948945,207.57,207.5,13.91260545]
[1731301725086,37.68948945,207.57,207.5,16.06656049]
[1731301725412,13.91260545,207.56,207.5,13.91260545]
[1731301726566,13.91260545,207.55,207.48,13.91260545]
[1731301726768,23.776884,207.53,207.47,13.91260545]
[1731301727093,37.68948945,207.5,207.41,20.0]
[1731301727267,6.54431996,207.52,207.42,13.91260545]
[1731301727268,23.776884,207.48,207.42,13.91260545]
[1731301727783,22.39399002,207.48,207.42,13.91260545]
[1731301728372,36.30659547,207.48,207.41,13.91260545]
[1731301728695,22.39399002,207.48,207.42,13.91260545]
[1731301729495,13.91260545,207.46,207.35,17.69318851]
[1731301729701,23.776884,207.45,207.39,13.91260545]
[1731301730291,23.776884,207.46,207.39,13.91260545]
[1731301731587,23.776884,207.46,207.38,13.91260545]
[1731301731875,23.776884,207.42,207.35,13.91260545]
[1731301732490,13.91260545,207.4,207.33,13.91260545]
[1731301732692,13.91260545,207.38,207.31,13.91260545]
[1731301732892,23.776884,207.37,207.3,13.91260545]
[1731301733097,37.68948945,207.37,207.3,13.91260545]
[1731301733279,37.68948945,207.35,207.28,13.91260545]
[1731301733689,23.776884,207.35,207.29,13.91260545]
[1731301735101,23.776884,207.37,207.3,13.91260545]
[1731301735305,23.776884,207.37,207.31,13.91260545]
[1731301735495,23.776884,207.37,207.3,13.91260545]
[1731301736683,37.68948945,207.37,207.3,13.91260545]
[1731301736904,37.68948945,207.35,207.28,13.91260545]
[1731301737084,23.776884,207.35,207.29,13.91260545]
[1731301737289,23.776884,207.36,207.3,13.91260545]
[1731301740001,4.97523197,207.38,207.34,13.91260545]
[1731301740190,15.2305,207.41,207.35,13.91260545]
[1731301740393,15.2305,207.41,207.37,13.91260545]
[1731301741508,15.2305,207.41,207.36,13.91260545]
[1731301741695,15.2305,207.41,207.35,13.91260545]
[1731301742092,23.776884,207.4,207.35,13.91260545]
[1731301743590,177.42626079,207.3,207.29,2.15912188]
[1731301743788,15.92626079,207.3,207.29,47.8252109]
[1731301744491,15.92626079,207.3,207.29,43.0162109]
[1731301744686,15.92626079,207.3,207.29,33.91260545]
[1731301744891,15.92626079,207.3,207.29,34.91921361]
[1731301745097,15.92626079,207.3,207.29,33.91260545]
[1731301745304,15.92626079,207.3,207.29,0.37274424]
[1731301745492,15.92626079,207.3,207.29,14.06707264]
[1731301745692,15.92626079,207.3,207.29,13.91260545]
[1731301745913,15.92626079,207.3,207.29,13.99130552]
[1731301746332,39.70314479,207.3,207.29,13.99130552]
[1731301746511,39.70314479,207.3,207.29,14.01060223]
[1731301747305,15.92626079,207.3,207.29,34.01060223]
[1731301747706,15.92626079,207.3,207.29,33.91260545]
[1731301749713,15.92626079,207.3,207.25,2.11770602]
[1731301749889,15.92626079,207.3,207.29,13.91260545]
[1731301750910,15.92626079,207.3,207.29,27.8252109]
[1731301751497,15.92626079,207.3,207.29,13.91260545]
[1731301751902,15.92626079,207.3,207.29,34.00129332]
[1731301752230,15.2305,207.41,207.37,13.91260545]
[1731301753661,23.776884,207.4,207.37,13.91260545]
[1731301754700,23.776884,207.4,207.38,13.91260545]
[1731301754894,23.776884,207.4,207.3,48.97820545]
[1731301754895,23.776884,207.4,207.37,13.91260545]
[1731301755318,23.776884,207.4,207.3,35.0656]
[1731301755623,37.68948945,207.4,207.3,37.18022516]
[1731301755818,37.68948945,207.4,207.33,13.91260545]
[1731301756022,23.776884,207.4,207.35,13.91260545]
[1731301756614,23.776884,207.4,207.34,13.91260545]
[1731301756818,23.776884,207.4,207.35,13.91260545]
[1731301757031,23.776884,207.4,207.37,13.91260545]
[1731301758229,23.776884,207.41,207.39,13.91260545]
[1731301758440,15.1811,207.45,207.4,13.91260545]
[1731301758810,15.1811,207.45,207.39,13.91260545]
[1731301759010,29.09370545,207.45,207.38,13.91260545]
[1731301759527,15.1811,207.45,207.39,13.91260545]
[1731301759732,23.776884,207.44,207.39,13.91260545]
[1731301763034,23.776884,207.44,207.4,13.91260545]
[1731301763209,23.776884,207.44,207.39,13.91260545]
[1731301763528,23.776884,207.44,207.4,13.91260545]
[1731301763929,23.776884,207.44,207.39,13.91260545]
[1731301764127,23.776884,207.44,207.41,13.91260545]
[1731301764823,23.776884,207.44,207.4,13.91260545]
[1731301765608,23.776884,207.44,207.3,2.11462516]